[Event "Vugar Gashimov Memorial Blitz 2024"]
[Site "Shusha"]
[Date "2024.09.28"]
[Round "5.4"]
[White "Aravindh, Chithambaram VR."]
[Black "Suleymanli, Aydin"]
[Result "1/2-1/2"]
[ECO "C49"]
[WhiteElo "2698"]
[BlackElo "2632"]
[Annotator "RC"]
[PlyCount "115"]
[EventDate "2024.09.28"]
[EventType "tourn"]
[EventCountry "AZE"]
[SourceTitle "playchess.com"]
[Source "ChessBase"]
[SourceQuality "1"]
[TimeControl "180+2"]

1. e4 {[%emt 0:00:02]} e5 {[%emt 0:00:00]} 2. Nf3 {[%emt 0:00:01]} Nc6 {[%emt 0:00:01]} 3. Nc3 {[%emt 0:00:02]} Nf6 {[%emt 0:00:02]} 4. Bb5 {[%emt 0:00:02]} Bb4 {[%emt 0:00:07]} 5. O-O {[%emt 0:00:04]} O-O {[%emt 0:00:11]} 6. d3 {[%emt 0:00:02]} Bxc3 {[%emt 0:00:04]} 7. bxc3 {[%emt 0:00:02]} d6 {[%emt 0:00:03]} 8. Bg5 {[%emt 0:00:03]} h6 {[%emt 0:00:01]} 9. Bh4 {[%emt 0:00:02]} Qe7 {[%emt 0:00:06]} 10. d4 {[%emt 0:00:06]} Bd7 {[%emt 0:00:16]} 11. Rb1 {[%emt 0:00:06]} a6 {[%emt 0:00:13]} 12. Bd3 {[%emt 0:00:06]} b5 {[%emt 0:00:01]} 13. h3 {[%emt 0:00:19]} Rfe8 {[%emt 0:00:32]} 14. Qc1 {[%emt 0:00:30]} Na5 {[%emt 0:00:22]} 15. Qa3 {[%emt 0:00:23]} Nb7 {[%emt 0:00:18]} 16. c4 {[%emt 0:00:08]} c5 {[%emt 0:00:12]} 17. d5 {[%emt 0:00:35]} b4 {[%emt 0:00:23]} 18. Qc1 {[%emt 0:00:02]} a5 {[%emt 0:00:04]} 19. g4 {[%emt 0:00:06]} Kh8 {[%emt 0:00:22]} 20. Kh1 {[%emt 0:00:20]} Rg8 {[%emt 0:00:01]} 21. Ne1 {[%emt 0:00:25]} g5 {[%emt 0:00:08]} 22. Bg3 {[%emt 0:00:01]} h5 {[%emt 0:00:05]} 23. f3 {[%emt 0:00:04]} h4 {[%emt 0:00:06]} 24. Bf2 {[%emt 0:00:04]} Nh7 {[%emt 0:00:01]} 25. Ng2 {[%emt 0:00:02]} Nf8 {[%emt 0:00:07]} 26. a3 {[%emt 0:00:06]} Rg7 {[%emt 0:00:03]} 27. c3 {[%emt 0:00:06]} Rc8 {[%emt 0:00:02]} 28. cxb4 {[%emt 0:00:02]} axb4 {[%emt 0:00:00]} 29. axb4 {[%emt 0:00:01]} cxb4 {[%emt 0:00:01]} 30. Rxb4 {[%emt 0:00:01]} Nc5 {[%emt 0:00:00]} 31. Bc2 {[%emt 0:00:06]} Ng6 {[%emt 0:00:02]} 32. Rb6 {[%emt 0:00:02]} Kh7 {[%emt 0:00:03]} 33. Qa3 {[%emt 0:00:03]} Rgg8 {[%emt 0:00:03]} 34. Qb4 {[%emt 0:00:02]} Ra8 {[%emt 0:00:04]} 35. Bxc5 {[%emt 0:00:02]} dxc5 {[%emt 0:00:01]} 36. Qd2 {[%emt 0:00:02]} Ra2 {[%emt 0:00:01]} 37. Rb7 {[%emt 0:00:03]} Qd6 {[%emt 0:00:04]} 38. Rfb1 {[%emt 0:00:01]} Rga8 {[%emt 0:00:03]} 39. R1b6 {[%emt 0:00:02]} Qe7 {[%emt 0:00:01]} 40. Ne3 {[%emt 0:00:01]} Qd8 {[%emt 0:00:02]} 41. Nf5 {[%emt 0:00:03]} Ra1+ {[%emt 0:00:03]} 42. Bb1 {[%emt 0:00:01]} R1a7 {[%emt 0:00:01]} 43. Rxa7 {[%emt 0:00:03]} Rxa7 {[%emt 0:00:01]} 44. Qb2 {[%emt 0:00:02]} Ra4 {[%emt 0:00:05]} 45. Rb8 {[%emt 0:00:01]} Qa5 {[%emt 0:00:01]} 46. Kh2 {[%emt 0:00:03]} Rxc4 {[%emt 0:00:01]} 47. Bd3 {[%emt 0:00:02]} Rc3 {[%emt 0:00:02]} 48. Qd2 {[%emt 0:00:01]} Qa3 {[%emt 0:00:01]} 49. Be2 {[%emt 0:00:03]} Nf4 {[%emt 0:00:02]} 50. Rb7 {[%emt 0:00:01]} Rxf3 {[%emt 0:00:04]} 51. Rxd7 {[%emt 0:00:04]} Rxh3+ {[%emt 0:00:02]} 52. Kg1 {[%emt 0:00:00]} Rh1+ {[%emt 0:00:00]} 53. Kf2 {[%emt 0:00:03]} Rh2+ {[%emt 0:00:01]} 54. Kg1 {[%emt 0:00:03]} Rh1+ {[%emt 0:00:07]} 55. Kf2 {[%emt 0:00:01]} Rh2+ {[%emt 0:00:02]} 56. Kg1 {[%emt 0:00:02]} Rh1+ {[%emt 0:00:01]} 57. Kf2 {[%emt 0:00:01]} Rh2+ {[%emt 0:00:02]} 58. Kg1 {[%emt 0:00:07]} 1/2-1/2

[Event "Vugar Gashimov Memorial Blitz 2024"]
[Site "Shusha"]
[Date "2024.09.28"]
[Round "6.1"]
[White "Mamedyarov, Shakhriyar"]
[Black "Suleymanli, Aydin"]
[Result "1/2-1/2"]
[ECO "A14"]
[WhiteElo "2733"]
[BlackElo "2632"]
[Annotator "TA"]
[PlyCount "58"]
[EventDate "2024.09.28"]
[EventType "tourn"]
[EventCountry "AZE"]
[SourceTitle "playchess.com"]
[Source "ChessBase"]
[SourceQuality "1"]
[TimeControl "180+2"]

{[%evp 18,58,18,7,9,15,31,33,42,32,41,63,54,44,51,24,24,16,38,0,0,-18,-40,-75,0,-11,-9,-14,-17,-84,0,0,0,0,6,6,33,0,0,0,28,0,0]} 1. Nf3 {[%emt 0:00:01]} Nf6 {[%emt 0:00:00]} 2. g3 {[%emt 0:00:01]} d5 {[%emt 0:00:01]} 3. Bg2 {[%emt 0:00:00]} e6 {[%emt 0:00:01]} 4. O-O {[%emt 0:00:02]} Be7 {[%emt 0:00:00]} 5. c4 {[%emt 0:00:01]} O-O {[%emt 0:00:02]} 6. b3 {[%emt 0:00:00]} c5 {[%emt 0:00:06]} 7. cxd5 {[%emt 0:00:03]} Nxd5 {[%emt 0:00:02]} 8. Bb2 {[%emt 0:00:01]} Nc6 {[%emt 0:00:11]} 9. Nc3 {[%emt 0:00:01]} Bf6 {[%emt 0:00:19]} 10. Qc2 {[%emt 0:00:02]} b6 {[%emt 0:00:04][%cal Bb7b6,Bb6c5,Bc5c4][%mdl 32]} 11. Nxd5 {[%emt 0:00:03]} exd5 {[%emt 0:00:06] [#]} 12. d4 $1 {[%emt 0:00:03]} Be6 {[%emt 0:00:50] White is slightly better.} (12... Nb4 13. Qd2) 13. dxc5 {[%emt 0:00:10]} Bxb2 {[%emt 0:00:05]} 14. Qxb2 {[%emt 0:00:03]} bxc5 {[%emt 0:00:02]} 15. Rac1 {[%emt 0:00:04]} c4 {[%emt 0:00:27]} 16. Rfd1 {[%emt 0:00:20] And now bxc4 would win.} Rb8 $1 {[%emt 0:00:26]} 17. Qd2 {[%emt 0:00:27]} h6 {[%emt 0:00:16]} 18. Rc3 {[%emt 0:00:30]} Qa5 {[%emt 0:00:07][%cal Od5d4]} 19. Rdc1 {[%emt 0:00:11]} Rfd8 {[%emt 0:00:04]} 20. e3 {[%emt 0:00:03] [#]} Bg4 {[%emt 0:00:12]} (20... Nb4 $1 $17 {[%cal Rb4a2]} 21. a4 Nc6) 21. Nd4 {[%emt 0:00:08]} Nxd4 {[%emt 0:00:02]} 22. Qxd4 {[%emt 0:00:01]} Be6 {[%emt 0:00:00]} 23. R1c2 {[%emt 0:00:20]} (23. Bf1 $11) 23... Qb6 {[%emt 0:00:08]} ({Black should try} 23... Rb4 $17 {aiming for ...cxb3.} 24. Qe5 cxb3 25. axb3 Rxb3) 24. Rd2 $11 {[%emt 0:00:09]} Qa5 {[%emt 0:00:06]} 25. h4 {[%emt 0:00:10]} Rd7 {[%emt 0:00:03]} 26. Kh2 {[%emt 0:00:12]} Rb4 {[%emt 0:00:01]} 27. Qe5 {[%emt 0:00:05]} Rb5 {[%emt 0:00:02][%cal Od5d4] ...d4! is the strong threat.} 28. Qd4 {[%emt 0:00:15]} Rb4 {[%emt 0:00:01]} 29. Qe5 {[%emt 0:00:15]} Rb5 {[%emt 0:00:00] Weighted Error Value: White=0.15 (very precise) /Black=0.12 (very precise) .  Mistake:       	White=1     	Black=2      Inaccurate:     	White=3     	Black=1      OK:         	White=6     	Black=10     Best:        	White=1     	Black=1      Strong:       	---       	Black=1} 1/2-1/2

[Event "Vugar Gashimov Memorial Blitz 2024"]
[Site "Shusha"]
[Date "2024.09.28"]
[Round "6.2"]
[White "Nepomniachtchi, Ian"]
[Black "Aravindh, Chithambaram VR."]
[Result "1-0"]
[ECO "C36"]
[WhiteElo "2755"]
[BlackElo "2698"]
[Annotator "TA"]
[PlyCount "57"]
[EventDate "2024.09.28"]
[EventType "tourn"]
[EventCountry "AZE"]
[SourceTitle "playchess.com"]
[Source "ChessBase"]
[SourceQuality "1"]
[TimeControl "180+2"]

{[%evp 11,57,-18,-10,-19,0,0,18,10,0,0,13,31,13,17,15,26,25,15,87,103,117,116,114,126,130,120,125,119,118,136,138,133,130,141,168,166,212,208,194,106,95,81,98,102,92,90,1107,1104]} 1. e4 {[%emt 0:00:00]} e5 {[%emt 0:00:02]} 2. f4 {[%emt 0:00:01]} exf4 {[%emt 0:00:14]} 3. Nf3 {[%emt 0:00:01]} d5 {[%emt 0:00:05]} 4. exd5 {[%emt 0:00:01]} Nf6 {[%emt 0:00:02]} 5. Bb5+ {[%emt 0:00:01]} c6 {[%emt 0:00:03]} 6. dxc6 {[%emt 0:00:01]} Nxc6 {[%emt 0:00:01]} 7. Nc3 {[%emt 0:00:01]} Bd6 {[%emt 0:00:16] Repels Ne5} 8. Qe2+ {[%emt 0:00:01]} Be6 {[%emt 0:00:04]} 9. Nd4 {[%emt 0:00:01] The position is equal.} O-O {[%emt 0:00:02]} 10. Nxe6 {[%emt 0:00:01]} fxe6 {[%emt 0:00:02]} 11. Bxc6 {[%emt 0:00:01]} bxc6 {[%emt 0:00:02]} 12. b3 {[%emt 0:00:01][%cal Oc1b2]} Nd5 {[%emt 0:00:11][%cal Of4f3] Hoping for ...f3!} 13. Bb2 {[%emt 0:00:01]} Qh4+ {[%emt 0:00:11] [#]} 14. g3 $1 {[%emt 0:00:00]} fxg3 {[%emt 0:00:02] [#]} (14... Qh6 $11 15. O-O-O f3 (15... fxg3 16. hxg3 Qg6 17. Rh4 $18)) (14... Qf6 15. O-O-O) 15. O-O-O $1 $16 {[%emt 0:00:02]} Nf4 {[%emt 0:00:03]} (15... gxh2 $2 {perishes.} 16. Qxe6+ Kh8 17. Qxd6 $18) 16. Qe1 {[%emt 0:00:01]} Qg4 {[%emt 0:00:17] And now ...g2 would win.} 17. hxg3 {[%emt 0:00:02]} (17. Qxg3 $2 {loses.} Ne2+ 18. Nxe2 Bxg3 $19) 17... Nd5 {[%emt 0:00:02]} 18. Ne4 {[%emt 0:00:14]} Be7 {[%emt 0:00:01]} 19. Nf2 $36 {[%emt 0:00:11][%mdl 2048] White has strong initiative.} Qf5 {[%emt 0:00:15]} 20. Nd3 {[%emt 0:00:01][%cal Og3g4]} Bf6 {[%emt 0:00:02]} 21. Bxf6 {[%emt 0:00:14]} Rxf6 {[%emt 0:00:29]} 22. Rh4 {[%emt 0:00:02]} a5 {[%emt 0:00:08][%cal Od5b4] [#]} 23. a4 $1 {[%emt 0:00:01]} c5 {[%emt 0:00:13]} (23... Rd8 $142 24. Rc4 Ne7) 24. Rc4 $18 {[%emt 0:00:05]} Nb4 {[%emt 0:00:08]} 25. Nxb4 {[%emt 0:00:01]} (25. Nxc5 $18 h5 26. Kb2) 25... cxb4 $16 {[%emt 0:00:03]} 26. Qe3 {[%emt 0:00:01]} h6 {[%emt 0:00:22]} 27. g4 {[%emt 0:00:04] White is more active.} Qf2 {[%emt 0:00:10]} 28. Qe5 {[%emt 0:00:02]} Rg6 $2 {[%emt 0:00:09][%mdl 8192]} (28... Qg2 $16) 29. Qe4 $1 {[%emt 0:00:01][%csl LRa8,LRg6] Weighted Error Value: White=0.07 (flawless) /Black=0.13 (very precise) .  Loses game:     	---       	Black=1      Mistake:       	White=1     	Black=2      Inaccurate:     	---       	Black=1      OK:         	White=13    	Black=6      Best:        	White=1     	---        Strong:       	White=2     	---} 1-0

[Event "Vugar Gashimov Memorial Blitz 2024"]
[Site "Shusha"]
[Date "2024.09.28"]
[Round "6.3"]
[White "Artemiev, Vladislav"]
[Black "Mamedov, Rauf"]
[Result "1/2-1/2"]
[ECO "E68"]
[WhiteElo "2701"]
[BlackElo "2637"]
[Annotator "TA"]
[PlyCount "87"]
[EventDate "2024.09.28"]
[EventType "tourn"]
[EventCountry "AZE"]
[SourceTitle "playchess.com"]
[Source "ChessBase"]
[SourceQuality "1"]
[TimeControl "180+2"]

{[%evp 21,87,58,56,38,50,48,62,56,46,0,0,0,0,0,0,0,0,0,0,0,0,-89,66,0,10,0,0,0,8,8,5,7,2,8,8,8,7,4,26,4,27,25,22,0,0,0,0,0,0,-20,-26,-26,-8,-8,-8,-8,0,0,0,0,0,0,0,0,0,0,0,0]} 1. d4 {[%emt 0:00:02]} Nf6 {[%emt 0:00:01]} 2. c4 {[%emt 0:00:03]} g6 {[%emt 0:00:01]} 3. g3 {[%emt 0:00:00]} Bg7 {[%emt 0:00:03]} 4. Bg2 {[%emt 0:00:02]} O-O {[%emt 0:00:01]} 5. Nc3 {[%emt 0:00:01]} d6 {[%emt 0:00:01]} 6. h3 {[%emt 0:00:01]} Nbd7 {[%emt 0:00:03]} 7. e4 {[%emt 0:00:14]} e5 {[%emt 0:00:01]} 8. Nge2 {[%emt 0:00:03]} exd4 {[%emt 0:00:02]} 9. Nxd4 {[%emt 0:00:01]} Ne5 {[%emt 0:00:01]} 10. b3 {[%emt 0:00:03]} a6 {[%emt 0:00:07]} 11. O-O {[%emt 0:00:04]} Bd7 {[%emt 0:00:08]} 12. Bg5 {[%emt 0:00:20] f4 is the strong threat.} h6 {[%emt 0:00:01]} 13. Be3 {[%emt 0:00:01]} Re8 {[%emt 0:00:06]} 14. f4 {[%emt 0:00:39] White is slightly better.} Nc6 {[%emt 0:00:02]} 15. Qd2 {[%emt 0:00:05]} (15. Rc1 $14) 15... Nxd4 $11 {[%emt 0:00:26]} 16. Bxd4 {[%emt 0:00:01]} (16. Qxd4 $2 Nxe4 17. Nxe4 Bxd4 $19) 16... c5 {[%emt 0:00:01]} 17. Bxf6 {[%emt 0:00:39]} Bxf6 {[%emt 0:00:03]} 18. e5 {[%emt 0:00:29]} dxe5 {[%emt 0:00:01][%cal Oe5e4]} 19. Ne4 {[%emt 0:00:01][%cal Od2d7] Strongly threatening Qxd7!} Bg7 {[%emt 0:00:43]} 20. Rad1 {[%emt 0:00:10]} Bc6 {[%emt 0:00:47]} 21. Nd6 {[%emt 0:00:03] [#]} (21. Qf2 $11 {keeps the balance.} Qe7 22. f5 gxf5 23. Qxf5) 21... exf4 $2 {[%emt 0:00:14]} (21... e4 $1 $17 {And now ...Bd4+ would win.} 22. Nxe8 Bd4+ 23. Kh2 f5) 22. Qxf4 {[%emt 0:00:08] White is more active.} (22. Nxe8 $14 Bd4+ 23. Kh1 Qxe8 24. Qxf4 (24. Rxf4 Be3 $17)) 22... Rf8 {[%emt 0:00:17]} 23. Bxc6 {[%emt 0:00:23]} bxc6 {[%emt 0:00:01]} 24. Nf5 {[%emt 0:00:02] Wards off Bd4+} Qb8 {[%emt 0:00:15]} 25. Ne7+ {[%emt 0:00:11]} (25. Nxh6+ $2 Bxh6 26. Qxh6 Qxg3+ 27. Kh1 Rad8 $19) 25... Kh7 {[%emt 0:00:01]} 26. Qxb8 {[%emt 0:00:01]} (26. Nxc6 Qc8 27. Rd6 Qxh3 $17) 26... Raxb8 {[%emt 0:00:01]} 27. Rd7 {[%emt 0:00:03]} Rbd8 {[%emt 0:00:01]} 28. Rxd8 {[%emt 0:00:02]} Rxd8 {[%emt 0:00:01]} 29. Rxf7 {[%emt 0:00:01][%mdl 4096] Endgame. KRB-KRN} Rd7 {[%emt 0:00:00]} 30. g4 {[%emt 0:00:05]} a5 {[%emt 0:00:04]} 31. Kg2 {[%emt 0:00:02]} Rd2+ {[%emt 0:00:06]} 32. Kg1 {[%emt 0:00:02]} Rxa2 {[%emt 0:00:02]} 33. Nxc6 {[%emt 0:00:01]} a4 {[%emt 0:00:04]} 34. bxa4 {[%emt 0:00:01]} Rxa4 {[%emt 0:00:00]} 35. Nd8 {[%emt 0:00:03] [#] Black must now prevent Ne6.} Kg8 {[%emt 0:00:01]} (35... Rxc4 $2 {is the wrong capture.} 36. Ne6 Kh8 (36... Rc1+ $2 37. Kf2 $18) 37. Rxg7 $18 (37. Nxg7 Re4 $11)) 36. Rc7 {[%emt 0:00:01]} Bd4+ {[%emt 0:00:02]} 37. Kg2 {[%emt 0:00:01] The position is equal.} Rxc4 {[%emt 0:00:02]} 38. Ne6 {[%emt 0:00:03]} Rc3 {[%emt 0:00:02]} 39. Nxd4 {[%emt 0:00:04]} cxd4 {[%emt 0:00:00]} 40. Rd7 {[%emt 0:00:01]} Rd3 {[%emt 0:00:02]} 41. h4 {[%emt 0:00:01]} Rd1 {[%emt 0:00:02]} 42. Rd6 $1 {[%emt 0:00:03]} Kf7 {[%emt 0:00:01]} 43. h5 $1 {[%emt 0:00:01]} gxh5 {[%emt 0:00:03]} 44. gxh5 {[%emt 0:00:01] Weighted Error Value: White=0.12 (very precise) /Black=0.14 (very precise) .  Mistake:       	White=3     	Black=1      OK:         	White=16    	Black=13     Best:        	White=2     	Black=2      Strong:       	White=2     	---} 1/2-1/2

[Event "Vugar Gashimov Memorial Blitz 2024"]
[Site "Shusha"]
[Date "2024.09.28"]
[Round "6.4"]
[White "Abdusattorov, Nodirbek"]
[Black "Rapport, Richard"]
[Result "1-0"]
[ECO "B10"]
[WhiteElo "2766"]
[BlackElo "2715"]
[Annotator "TA"]
[PlyCount "91"]
[EventDate "2024.09.28"]
[EventType "tourn"]
[EventCountry "AZE"]
[SourceTitle "playchess.com"]
[Source "ChessBase"]
[SourceQuality "1"]
[TimeControl "180+2"]

{[%evp 20,91,0,0,0,0,8,14,16,8,22,18,95,86,175,130,325,312,388,275,341,340,348,328,558,547,566,530,776,757,728,491,470,420,645,645,628,503,647,617,632,632,591,89,78,77,76,79,93,13,225,235,237,237,270,227,739,730,718,711,706,691,662,636,646,651,808,789,29967,29968,29969,29969,29973,29973]} 1. e4 {[%emt 0:00:01]} c6 {[%emt 0:00:00]} 2. Nf3 {[%emt 0:00:06]} d5 {[%emt 0:00:01]} 3. d3 {[%emt 0:00:01]} Qc7 {[%emt 0:00:01]} 4. Nc3 {[%emt 0:00:04]} dxe4 {[%emt 0:00:01]} 5. dxe4 {[%emt 0:00:03]} Nd7 {[%emt 0:00:03]} 6. Bc4 {[%emt 0:00:07] B10: Caro-Kann: 2 d3 and 2 c4.} b5 {[%emt 0:00:08]} 7. Bd3 $146 {[%emt 0:00:14]} ({Predecessor:} 7. Bb3 e6 8. O-O Ngf6 9. Re1 Bd6 10. h3 a6 11. a4 Bb7 12. Qe2 Ne5 13. Be3 Nxf3+ 14. Qxf3 {½-½ Radjabov,T (2723)-Rapport,R (2731) Wch Blitz Samarkand 2023 (17)}) 7... e6 {[%emt 0:00:07]} 8. a4 {[%emt 0:00:01]} b4 {[%emt 0:00:04]} 9. Nb1 {[%emt 0:00:09]} Ne7 {[%emt 0:00:07]} 10. Nbd2 {[%emt 0:00:09]} Ng6 {[%emt 0:00:02]} 11. Nc4 {[%emt 0:00:04]} Ba6 {[%emt 0:00:01]} 12. g3 {[%emt 0:00:17]} Bc5 {[%emt 0:00:09]} 13. Qe2 {[%emt 0:00:11]} Bxc4 {[%emt 0:00:10]} 14. Bxc4 {[%emt 0:00:01]} a5 {[%emt 0:00:01]} 15. b3 {[%emt 0:00:12]} h5 {[%emt 0:00:07]} (15... Nge5 $11 {remains equal.}) 16. Bb2 $16 {[%emt 0:00:02]} h4 {[%emt 0:00:01]} (16... Nge5 $16 {keeps fighting.}) 17. O-O-O {[%emt 0:00:09]} Rg8 $2 {[%emt 0:00:24]} (17... hxg3 $16 {is a better defense.} 18. hxg3 (18. Bxg7 $2 g2 $19) 18... Rxh1 19. Rxh1 Qa7) 18. Ng5 $18 {[%emt 0:00:07]} (18. gxh4 Nf4 19. Qf1 f6 $18) (18. Nxh4 Nxh4 19. Qh5 (19. gxh4 Qf4+ 20. Kb1 Ke7 $18) 19... Ng6 $16) 18... Nde5 {[%emt 0:00:13]} 19. Bxe6 {[%emt 0:00:14]} Qe7 {[%emt 0:00:23]} 20. Bf5 {[%emt 0:00:27]} (20. Qh5 Rh8 (20... Bxf2 $2 21. Nxf7 Qxe6 22. Nxe5 $18) 21. Qe2 Qxg5+ $15 (21... fxe6 22. f4 $11)) 20... Qxg5+ {[%emt 0:00:03]} 21. f4 {[%emt 0:00:01]} Nxf4 $2 {[%emt 0:00:20]} (21... Qe7 {might work better.} 22. Kb1 (22. Bxe5 Nxe5 23. fxe5 Qxe5 $16) 22... Rh8) 22. gxf4 $18 {[%emt 0:00:01]} Qxf4+ {[%emt 0:00:01]} 23. Kb1 {[%emt 0:00:01]} g6 {[%emt 0:00:46]} 24. Rhf1 {[%emt 0:00:01]} Qe3 {[%emt 0:00:03]} 25. Qxe3 {[%emt 0:00:17]} Bxe3 {[%emt 0:00:01]} 26. Bh3 {[%emt 0:00:04]} (26. Bxe5 gxf5 27. exf5 (27. Rxf5 Rd8 $14) 27... Kf8 $18) 26... f6 {[%emt 0:00:07]} (26... g5 $142 27. Bxe5 g4) 27. Rxf6 $18 {[%emt 0:00:01]} Nf7 {[%emt 0:00:04]} 28. e5 {[%emt 0:00:14]} Ng5 {[%emt 0:00:03]} 29. Bg2 {[%emt 0:00:02]} Rd8 {[%emt 0:00:02]} 30. Bxc6+ {[%emt 0:00:05]} Ke7 {[%emt 0:00:01]} 31. Rxd8 $2 {[%emt 0:00:01]} (31. Bd5 $18) 31... Rxd8 $16 {[%emt 0:00:03]} 32. Rxg6 {[%emt 0:00:03]} Rd1+ {[%emt 0:00:01]} 33. Ka2 {[%emt 0:00:00]} Rd2 {[%emt 0:00:01] [#]} 34. e6 {[%emt 0:00:13]} (34. Rg7+ $1 $16 Kf8 35. e6 Nxe6 36. Rg2) 34... Rxc2 $2 {[%emt 0:00:02] [#]} (34... Nxe6 $11 35. Be4 Rxh2) 35. Kb1 $1 $18 {[%emt 0:00:09]} Rf2 {[%emt 0:00:21]} (35... Rxc6 $2 {perishes.} 36. Bf6+ Kd6 (36... Kxe6 $2 37. Bxg5+ Kd7 38. Rxc6 $18) 37. e7 $18 (37. Bxg5 Rc1+ 38. Kb2 Bxg5 $11)) 36. Bd5 {[%emt 0:00:06]} Kd6 {[%emt 0:00:01]} 37. Bc4 {[%emt 0:00:04]} Ne4 $2 {[%emt 0:00:01]} (37... Rd2 38. e7+ Kxe7) 38. e7+ $18 {[%emt 0:00:01]} Kxe7 {[%emt 0:00:09]} 39. Re6+ {[%emt 0:00:00]} Kd7 {[%emt 0:00:01]} 40. Rxe4 {[%emt 0:00:02]} Bg5 {[%emt 0:00:01]} 41. Re2 {[%emt 0:00:01]} Rf3 {[%emt 0:00:06]} 42. Kc2 {[%emt 0:00:01]} h3 {[%emt 0:00:01]} 43. Bd4 {[%emt 0:00:02]} Bf4 {[%emt 0:00:01]} 44. Rf2 {[%emt 0:00:06]} Rxf2+ {[%emt 0:00:03]} 45. Bxf2 {[%emt 0:00:00]} Bxh2 {[%emt 0:00:02]} 46. Bf1 {[%emt 0:00:01]} 1-0

[Event "Vugar Gashimov Memorial Blitz 2024"]
[Site "Shusha"]
[Date "2024.09.28"]
[Round "7.1"]
[White "Rapport, Richard"]
[Black "Mamedyarov, Shakhriyar"]
[Result "0-1"]
[ECO "C77"]
[WhiteElo "2715"]
[BlackElo "2733"]
[Annotator "TA"]
[PlyCount "81"]
[EventDate "2024.09.28"]
[EventType "tourn"]
[EventCountry "AZE"]
[SourceTitle "playchess.com"]
[Source "ChessBase"]
[SourceQuality "1"]
[TimeControl "180+2"]

{[%evp 11,81,4,17,10,63,24,28,10,27,12,1,0,0,0,6,10,16,17,27,9,12,12,7,12,31,16,43,43,60,33,43,37,41,47,43,20,99,104,134,128,208,189,197,204,188,173,173,170,213,164,154,154,148,135,121,98,119,103,84,0,66,0,0,-1394,-1423,-29988,-29989,-29985,-4798,-29991,-29992,-29998]} 1. e4 {[%emt 0:00:02]} e5 {[%emt 0:00:02]} 2. Nf3 {[%emt 0:00:01]} Nc6 {[%emt 0:00:01]} 3. Bb5 {[%emt 0:00:02][%cal Bf1b5,Bb5a4,Ba4b3][%mdl 32]} a6 {[%emt 0:00:04]} 4. Ba4 {[%emt 0:00:01]} Nf6 {[%emt 0:00:02]} 5. Nc3 {[%emt 0:00:01]} b5 {[%emt 0:00:03]} 6. Bb3 {[%emt 0:00:01]} Bc5 {[%emt 0:00:01]} 7. Nd5 {[%emt 0:00:02]} d6 {[%emt 0:00:15]} (7... Nxe4 8. d4 Bxd4 (8... exd4 9. O-O $18) (8... Nxd4 9. Nxd4 O-O 10. Nf5 $18) 9. Nxd4 Nxd4 10. Qg4 $14) (7... O-O $11) 8. d3 {[%emt 0:00:05]} h6 {[%emt 0:00:02]} 9. c3 {[%emt 0:00:09] White has an edge.} Rb8 {[%emt 0:00:01]} 10. d4 {[%emt 0:00:08]} Ba7 {[%emt 0:00:12]} 11. Be3 {[%emt 0:00:02] Strongly threatening dxe5.} exd4 {[%emt 0:00:23]} 12. cxd4 {[%emt 0:00:02]} Nxd5 {[%emt 0:00:15]} 13. Bxd5 {[%emt 0:00:03]} Ne7 {[%emt 0:00:01]} 14. Bb3 {[%emt 0:00:03]} O-O {[%emt 0:00:02]} 15. O-O {[%emt 0:00:18]} c5 {[%emt 0:00:28]} 16. dxc5 {[%emt 0:00:03]} Bxc5 {[%emt 0:00:01]} 17. Re1 {[%emt 0:00:07]} Ng6 {[%emt 0:00:16]} 18. Rc1 {[%emt 0:00:01]} Bxe3 {[%emt 0:00:26]} 19. Rxe3 {[%emt 0:00:02]} Qf6 {[%emt 0:00:02][%cal Oc8b7]} 20. Qd4 {[%emt 0:00:06]} Ne5 {[%emt 0:00:07]} 21. Nxe5 {[%emt 0:00:16]} dxe5 {[%emt 0:00:01]} 22. Qa7 {[%emt 0:00:02]} Bg4 {[%emt 0:00:11]} 23. h3 {[%emt 0:00:03]} Bh5 {[%emt 0:00:01]} (23... Ra8 $1 $11 24. Qb7 Rab8) 24. Bd5 $16 {[%emt 0:00:12]} Qb6 {[%emt 0:00:24]} 25. Qe7 $36 {[%emt 0:00:09][%mdl 2048] White is on the roll.} Rfe8 {[%emt 0:00:11]} (25... Qd4 $16 {might work better.}) 26. Qh4 $1 $18 {[%emt 0:00:02]} Bg6 {[%emt 0:00:01]} 27. Rc6 {[%emt 0:00:01]} Qd8 {[%emt 0:00:01]} 28. Qg3 {[%emt 0:00:23]} Kh7 {[%emt 0:00:02]} 29. Rxa6 {[%emt 0:00:02]} b4 {[%emt 0:00:02]} 30. Rd3 {[%emt 0:00:10][%cal Od5f7]} Qc7 {[%emt 0:00:02]} 31. Qe3 {[%emt 0:00:07]} Qc2 {[%emt 0:00:03]} 32. Qd2 {[%emt 0:00:09]} Qb1+ {[%emt 0:00:01]} 33. Kh2 {[%emt 0:00:03]} Rec8 {[%emt 0:00:02]} 34. Bb3 {[%emt 0:00:11] Wards off Rc2. Rd7 is the strong threat.} Rc1 {[%emt 0:00:03]} 35. f3 {[%emt 0:00:01]} (35. Rd7 $16 Rf8 36. Kg3 (36. Qxb4 $2 Rh1+ 37. Kg3 Qc1 $19)) 35... Rh1+ $11 {[%emt 0:00:02]} 36. Kg3 {[%emt 0:00:01]} Qg1 {[%emt 0:00:02] ...Qh2+ would now be deadly.} 37. Rc6 $2 {[%emt 0:00:24][%mdl 8192] [#]} (37. Rd7 $11 Qh2+ 38. Kh4) 37... Qh2+ $1 $19 {[%emt 0:00:01]} 38. Kh4 {[%emt 0:00:02] [#]} Rg1 $1 {[%emt 0:00:08]} 39. Rc2 {[%emt 0:00:02]} Rb6 {[%emt 0:00:02]} (39... Rc8 $142 40. f4 Rxc2 (40... Qxf4+ $2 {too greedy.} 41. Qxf4 exf4 42. Rxc8 $18) 41. Bxc2 Rxg2 (41... Bxe4 $2 {is the wrong capture.} 42. Rg3 $18) 42. Qe3 exf4 (42... Rxc2 43. Qg3 Qxg3+ 44. Kxg3 Bxe4 45. fxe5 Bxd3 46. b3 Rxa2 47. Kf4 Ra3 48. Ke3 Rxb3 49. Kd4 Rc3 50. h4 Bf5 51. h5 Rd3+ 52. Kc5 b3 53. e6 fxe6 54. Kc4 b2 55. Kb5 b1=Q+ 56. Kc4 Qc2+ 57. Kb5 Rb3+ 58. Ka6 Qa2#) 43. Qf3 Rg3 (43... Rxc2 {leads to mate.} 44. Rd7 Qg1 45. Qxf4 Qe1+ 46. Qg3 Qxe4+ 47. Qg4 Qe1+ 48. Qg3 Rc4+ 49. Rd4 Rxd4#) 44. Qxg3 fxg3 45. Rxg3 Qf2 (45... Qxc2 46. Rxg6 Qf2+ 47. Kg4 Kxg6 48. h4 h5+ 49. Kh3 Kf6 50. b3 Ke5 51. a3 Kf4 52. axb4 Qg3#) 46. Kg4 h5+ (46... Qxc2 $2 47. Kf3 $19) 47. Kh4 Kh6 (47... Qxc2 48. Rxg6 Qf2+ 49. Kxh5 Qf4 50. Rxg7+ Kxg7 51. e5 f5 52. exf6+ Kxf6 53. h4 Qf5+ 54. Kh6 Qg6#) 48. e5 Bxc2 49. b3 g5#) 40. Rd8 {[%emt 0:00:20]} Rf6 {[%emt 0:00:03]} 41. Qf2 {[%emt 0:00:25] Weighted Error Value: White=0.57/Black=0.25 (precise) .  Loses game:     	White=1     	---        Mistake:       	White=1     	Black=3      Inaccurate:     	White=4     	Black=1      OK:         	White=15    	Black=10     Best:        	---       	Black=4      Strong:       	White=1     	Black=1} 0-1